[Event "November 21 Early 2023"]
[Site "https://www.chess.com"]
[Date "2023.11.21"]
[Round "7"]
[White "Semenova, Alina"]
[Black "Rodriguez Fontecha, Marcos"]
[Result "1/2-1/2"]
[Board "123"]
[TimeControl "180+1"]
[WhiteFideId "24113875"]
[BlackFideId "2256576"]
[WhiteElo "1827"]
[BlackElo "2249"]
[WhiteTeam "RUS"]
[BlackTeam "ESP"]
[WhiteClock "0:00:08"]
[BlackClock "0:00:18"]

1. e4 {[%clk 0:03:00]}  e6 {[%clk 0:02:59]} 2. d4 {[%clk 0:02:59]}  c5 {[%clk 0:02:59]} 3. d5 {[%clk 0:02:58]}  exd5 {[%clk 0:02:59]} 4. exd5 {[%clk 0:02:59]}  d6 {[%clk 0:03:00]} 5. Nf3 {[%clk 0:02:58]}  Nf6 {[%clk 0:03:01]} 6. c4 {[%clk 0:02:58]}  Be7 {[%clk 0:03:02]} 7. Bd3 {[%clk 0:02:58]}  O-O {[%clk 0:03:03]} 8. O-O {[%clk 0:02:58]}  Na6 {[%clk 0:03:04]} 9. a3 {[%clk 0:02:58]}  Nc7 {[%clk 0:03:04]} 10. Nc3 {[%clk 0:02:55]}  a6 {[%clk 0:03:01]} 11. a4 {[%clk 0:02:53]}  b6 {[%clk 0:03:02]} 12. h3 {[%clk 0:02:45]}  Bb7 {[%clk 0:03:02]} 13. Bf4 {[%clk 0:02:33]}  Re8 {[%clk 0:03:01]} 14. Re1 {[%clk 0:02:32]}  Bf8 {[%clk 0:03:00]} 15. Qd2 {[%clk 0:02:32]}  Qd7 {[%clk 0:02:59]} 16. Nh4 {[%clk 0:02:26]}  g6 {[%clk 0:02:58]} 17. Bg5 {[%clk 0:02:21]}  Bg7 {[%clk 0:02:58]} 18. Nf3 {[%clk 0:02:17]}  b5 {[%clk 0:02:53]} 19. b3 {[%clk 0:02:13]}  Rxe1+ {[%clk 0:02:45]} 20. Rxe1 {[%clk 0:02:13]}  Re8 {[%clk 0:02:44]} 21. Rxe8+ {[%clk 0:02:12]}  Qxe8 {[%clk 0:02:44]} 22. g4 {[%clk 0:01:57]}  Bc8 {[%clk 0:02:42]} 23. Qf4 {[%clk 0:01:56]}  Qe7 {[%clk 0:02:10]} 24. Ne4 {[%clk 0:01:50]}  Nce8 {[%clk 0:02:10]} 25. Nfd2 {[%clk 0:01:23]}  bxa4 {[%clk 0:02:02]} 26. bxa4 {[%clk 0:01:22]}  Bd7 {[%clk 0:01:44]} 27. a5 {[%clk 0:01:22]}  Ba4 {[%clk 0:01:44]} 28. Nxf6+ {[%clk 0:00:32]}  Bxf6 {[%clk 0:01:44]} 29. Bxf6 {[%clk 0:00:32]}  Nxf6 {[%clk 0:01:36]} 30. Ne4 {[%clk 0:00:31]}  Nxe4 {[%clk 0:01:35]} 31. Qxe4 {[%clk 0:00:31]}  Qd8 {[%clk 0:01:34]} 32. Qf4 {[%clk 0:00:23]}  Bb3 {[%clk 0:01:33]} 33. Kg2 {[%clk 0:00:20]}  Kg7 {[%clk 0:01:30]} 34. g5 {[%clk 0:00:20]}  Qe7 {[%clk 0:01:26]} 35. h4 {[%clk 0:00:20]}  Kf8 {[%clk 0:01:18]} 36. Qf6 {[%clk 0:00:17]}  Ke8 {[%clk 0:00:54]} 37. Qxe7+ {[%clk 0:00:13]}  Kxe7 {[%clk 0:00:55]} 38. f4 {[%clk 0:00:13]}  f6 {[%clk 0:00:52]} 39. Kf3 {[%clk 0:00:12]}  Kf7 {[%clk 0:00:51]} 40. Ke2 {[%clk 0:00:09]}  Kg7 {[%clk 0:00:51]} 41. Kd2 {[%clk 0:00:09]}  h6 {[%clk 0:00:51]} 42. Kc3 {[%clk 0:00:09]}  Ba4 {[%clk 0:00:48]} 43. Be2 {[%clk 0:00:08]}  Bd7 {[%clk 0:00:48]} 44. Kd3 {[%clk 0:00:07]}  Bf5+ {[%clk 0:00:47]} 45. Ke3 {[%clk 0:00:07]}  hxg5 {[%clk 0:00:31]} 46. hxg5 {[%clk 0:00:06]}  Kf7 {[%clk 0:00:31]} 47. Bd1 {[%clk 0:00:06]}  Ke7 {[%clk 0:00:31]} 48. Ba4 {[%clk 0:00:06]}  Bh3 {[%clk 0:00:24]} 49. Bc2 {[%clk 0:00:03]}  Bf1 {[%clk 0:00:24]} 50. Bd3 {[%clk 0:00:02]}  Bxd3 {[%clk 0:00:16]} 51. Kxd3 {[%clk 0:00:03]}  fxg5 {[%clk 0:00:16]} 52. fxg5 {[%clk 0:00:03]}  Kd8 {[%clk 0:00:16]} 53. Ke3 {[%clk 0:00:04]}  Ke7 {[%clk 0:00:16]} 54. Kf4 {[%clk 0:00:05]}  Kd8 {[%clk 0:00:17]} 55. Ke3 {[%clk 0:00:06]}  Ke7 {[%clk 0:00:18]} 56. Kf4 {[%clk 0:00:07]}  Kd8 {[%clk 0:00:18]} 57. Ke3 {[%clk 0:00:08]} 1/2-1/2

[Event "November 21 Early 2023"]
[Site "https://www.chess.com"]
[Date "2023.11.21"]
[Round "7"]
[White "Skibbe, Willi"]
[Black "Spata, German"]
[Result "0-1"]
[Board "124"]
[TimeControl "180+1"]
[WhiteFideId "4682190"]
[BlackFideId "113026"]
[WhiteElo "2276"]
[BlackElo "2260"]
[WhiteTeam "GER"]
[BlackTeam "ARG"]
[WhiteClock "0:00:58"]
[BlackClock "0:01:35"]

1. e4 {[%clk 0:03:00]}  e6 {[%clk 0:02:59]} 2. d4 {[%clk 0:03:00]}  d5 {[%clk 0:02:59]} 3. exd5 {[%clk 0:03:01]}  exd5 {[%clk 0:02:59]} 4. h3 {[%clk 0:03:01]}  Nf6 {[%clk 0:02:59]} 5. Nf3 {[%clk 0:03:01]}  Bf5 {[%clk 0:02:58]} 6. c4 {[%clk 0:02:59]}  c6 {[%clk 0:02:59]} 7. Nc3 {[%clk 0:02:59]}  Be7 {[%clk 0:02:58]} 8. c5 {[%clk 0:02:57]}  O-O {[%clk 0:02:58]} 9. Bd3 {[%clk 0:02:57]}  Ne4 {[%clk 0:02:58]} 10. g4 {[%clk 0:02:54]}  Bg6 {[%clk 0:02:57]} 11. Ne5 {[%clk 0:02:53]}  Nxc3 {[%clk 0:02:48]} 12. bxc3 {[%clk 0:02:54]}  Nd7 {[%clk 0:02:48]} 13. Nxg6 {[%clk 0:02:46]}  fxg6 {[%clk 0:02:44]} 14. O-O {[%clk 0:02:46]}  Nf6 {[%clk 0:02:35]} 15. Bf4 {[%clk 0:02:30]}  Ne4 {[%clk 0:02:31]} 16. Bxe4 {[%clk 0:02:28]}  Rxf4 {[%clk 0:02:29]} 17. Bg2 {[%clk 0:02:28]}  Bh4 {[%clk 0:02:27]} 18. Qc2 {[%clk 0:02:26]}  Qf6 {[%clk 0:02:25]} 19. Rae1 {[%clk 0:02:24]}  Rf8 {[%clk 0:02:25]} 20. Re2 {[%clk 0:02:24]}  h5 {[%clk 0:02:18]} 21. gxh5 {[%clk 0:01:59]}  gxh5 {[%clk 0:02:16]} 22. Qd2 {[%clk 0:02:00]}  Bg5 {[%clk 0:02:13]} 23. Qb2 {[%clk 0:01:52]}  Rf7 {[%clk 0:02:08]} 24. a4 {[%clk 0:01:51]}  Rh4 {[%clk 0:02:04]} 25. Re8+ {[%clk 0:01:29]}  Kh7 {[%clk 0:01:57]} 26. Qc2+ {[%clk 0:01:28]}  g6 {[%clk 0:01:57]} 27. Qe2 {[%clk 0:01:17]}  Bf4 {[%clk 0:01:51]} 28. Qe6 {[%clk 0:01:11]}  Qxe6 {[%clk 0:01:41]} 29. Rxe6 {[%clk 0:01:12]}  Bd2 {[%clk 0:01:41]} 30. Rd1 {[%clk 0:01:11]}  Bxc3 {[%clk 0:01:38]} 31. Rd3 {[%clk 0:01:02]}  Bxd4 {[%clk 0:01:35]} 32. Rg3 {[%clk 0:00:58]}  Bxf2+ {[%clk 0:01:35]} 0-1

[Event "November 21 Early 2023"]
[Site "https://www.chess.com"]
[Date "2023.11.21"]
[Round "7"]
[White "GatoRojo150"]
[Black "Dishman, Stephen"]
[Result "1-0"]
[Board "127"]
[TimeControl "180+1"]
[BlackFideId "403024"]
[WhiteElo "2568"]
[BlackElo "2204"]
[BlackTeam "ENG"]
[WhiteClock "0:01:00"]
[BlackClock "0:00:19"]

1. e4 {[%clk 0:03:00]}  c6 {[%clk 0:02:53]} 2. Nc3 {[%clk 0:03:00]}  d5 {[%clk 0:02:54]} 3. Nf3 {[%clk 0:03:00]}  dxe4 {[%clk 0:02:53]} 4. Nxe4 {[%clk 0:03:01]}  Nf6 {[%clk 0:02:53]} 5. Qe2 {[%clk 0:03:01]}  Nxe4 {[%clk 0:02:53]} 6. Qxe4 {[%clk 0:03:02]}  Nd7 {[%clk 0:02:53]} 7. Bc4 {[%clk 0:03:02]}  Nf6 {[%clk 0:02:53]} 8. Ne5 {[%clk 0:03:03]}  e6 {[%clk 0:02:53]} 9. Qe2 {[%clk 0:03:03]}  b5 {[%clk 0:02:53]} 10. Bd3 {[%clk 0:03:03]}  Qc7 {[%clk 0:02:52]} 11. b3 {[%clk 0:03:03]}  Bd6 {[%clk 0:02:43]} 12. Bb2 {[%clk 0:03:03]}  Nd5 {[%clk 0:02:30]} 13. O-O {[%clk 0:03:02]}  Nf4 {[%clk 0:02:25]} 14. Qe3 {[%clk 0:03:02]}  Nxd3 {[%clk 0:02:24]} 15. Nxd3 {[%clk 0:03:03]}  O-O {[%clk 0:02:21]} 16. Be5 {[%clk 0:02:48]}  Bxe5 {[%clk 0:02:14]} 17. Nxe5 {[%clk 0:02:46]}  c5 {[%clk 0:02:12]} 18. Rae1 {[%clk 0:02:38]}  Bb7 {[%clk 0:02:11]} 19. c4 {[%clk 0:02:26]}  b4 {[%clk 0:02:08]} 20. d4 {[%clk 0:02:22]}  cxd4 {[%clk 0:02:06]} 21. Qxd4 {[%clk 0:02:23]}  Rfd8 {[%clk 0:02:03]} 22. Qh4 {[%clk 0:02:19]}  a5 {[%clk 0:02:01]} 23. Re3 {[%clk 0:02:16]}  a4 {[%clk 0:01:56]} 24. Ng4 {[%clk 0:02:15]}  axb3 {[%clk 0:01:40]} 25. axb3 {[%clk 0:02:15]}  Qc6 {[%clk 0:01:06]} 26. Rg3 {[%clk 0:02:14]}  Kh8 {[%clk 0:01:02]} 27. Nf6 {[%clk 0:01:58]}  h6 {[%clk 0:01:01]} 28. Qg4 {[%clk 0:01:29]}  g6 {[%clk 0:00:48]} 29. Qf4 {[%clk 0:01:22]}  Kg7 {[%clk 0:00:42]} 30. Ng4 {[%clk 0:01:08]}  Rh8 {[%clk 0:00:27]} 31. Qf6+ {[%clk 0:01:00]}  Kg8 {[%clk 0:00:27]} 32. Ne5 {[%clk 0:00:59]}  Qc7 {[%clk 0:00:20]} 33. Nxg6 {[%clk 0:00:58]}  fxg6 {[%clk 0:00:18]} 34. Rxg6+ {[%clk 0:00:59]}  Kh7 {[%clk 0:00:18]} 35. Rxh6+ {[%clk 0:00:59]}  Kg8 {[%clk 0:00:19]} 36. Rxh8# {[%clk 0:01:00]} 1-0

[Event "November 21 Early 2023"]
[Site "https://www.chess.com"]
[Date "2023.11.21"]
[Round "7"]
[White "mkllnd1517"]
[Black "NovoselovRoman"]
[Result "0-1"]
[Board "131"]
[TimeControl "180+1"]
[WhiteElo "2363"]
[BlackElo "2525"]
[WhiteClock "0:00:01"]
[BlackClock "0:00:22"]

1. Nf3 {[%clk 0:03:00]}  d5 {[%clk 0:02:56]} 2. b3 {[%clk 0:03:00]}  Nf6 {[%clk 0:02:53]} 3. Bb2 {[%clk 0:03:01]}  Nc6 {[%clk 0:02:53]} 4. d4 {[%clk 0:02:58]}  Bg4 {[%clk 0:02:53]} 5. Nbd2 {[%clk 0:02:58]}  e6 {[%clk 0:02:52]} 6. e3 {[%clk 0:02:56]}  Bd6 {[%clk 0:02:51]} 7. Bd3 {[%clk 0:02:55]}  Ne7 {[%clk 0:02:50]} 8. O-O {[%clk 0:02:55]}  c6 {[%clk 0:02:50]} 9. c4 {[%clk 0:02:52]}  Ng6 {[%clk 0:02:48]} 10. h3 {[%clk 0:02:48]}  Bh5 {[%clk 0:02:48]} 11. g4 {[%clk 0:02:39]}  Nxg4 {[%clk 0:02:45]} 12. hxg4 {[%clk 0:02:40]}  Bxg4 {[%clk 0:02:46]} 13. Be2 {[%clk 0:02:40]}  h5 {[%clk 0:02:41]} 14. Ne5 {[%clk 0:02:20]}  Qh4 {[%clk 0:02:28]} 15. Qe1 {[%clk 0:01:45]}  Bxe5 {[%clk 0:01:40]} 16. dxe5 {[%clk 0:01:42]}  Bh3 {[%clk 0:01:40]} 17. f4 {[%clk 0:01:30]}  Bxf1 {[%clk 0:01:39]} 18. Qxh4 {[%clk 0:01:30]}  Nxh4 {[%clk 0:01:40]} 19. Bxf1 {[%clk 0:01:30]}  O-O-O {[%clk 0:01:32]} 20. cxd5 {[%clk 0:01:28]}  cxd5 {[%clk 0:01:22]} 21. Ba3 {[%clk 0:01:21]}  Nf5 {[%clk 0:00:57]} 22. Kf2 {[%clk 0:01:21]}  Kb8 {[%clk 0:00:53]} 23. Bd3 {[%clk 0:01:16]}  g6 {[%clk 0:00:49]} 24. Nf3 {[%clk 0:01:15]}  Rc8 {[%clk 0:00:47]} 25. Bxf5 {[%clk 0:00:58]}  gxf5 {[%clk 0:00:46]} 26. Ng5 {[%clk 0:00:58]}  Rc2+ {[%clk 0:00:45]} 27. Kf3 {[%clk 0:00:55]}  h4 {[%clk 0:00:44]} 28. Nxf7 {[%clk 0:00:47]}  Rh5 {[%clk 0:00:44]} 29. Bd6+ {[%clk 0:00:36]}  Kc8 {[%clk 0:00:41]} 30. Rg1 {[%clk 0:00:37]}  b6 {[%clk 0:00:35]} 31. Rg8+ {[%clk 0:00:22]}  Kb7 {[%clk 0:00:34]} 32. Nd8+ {[%clk 0:00:23]}  Ka6 {[%clk 0:00:34]} 33. Nxe6 {[%clk 0:00:22]}  h3 {[%clk 0:00:32]} 34. Rg1 {[%clk 0:00:22]}  h2 {[%clk 0:00:24]} 35. Rh1 {[%clk 0:00:23]}  Rh4 {[%clk 0:00:24]} 36. Ng5 {[%clk 0:00:06]}  Rg4 {[%clk 0:00:23]} 37. e6 {[%clk 0:00:04]}  Rcg2 {[%clk 0:00:22]} 38. e4 {[%clk 0:00:01]}  R4g3# {[%clk 0:00:22]} 0-1

[Event "November 21 Early 2023"]
[Site "https://www.chess.com"]
[Date "2023.11.21"]
[Round "7"]
[White "SeLaPegoACualquiera"]
[Black "Berezin, Viktor"]
[Result "0-1"]
[Board "138"]
[TimeControl "180+1"]
[BlackFideId "14107872"]
[WhiteElo "2177"]
[BlackElo "2310"]
[BlackTeam "UKR"]
[WhiteClock "0:00:07"]
[BlackClock "0:00:26"]

1. e4 {[%clk 0:03:00]}  g6 {[%clk 0:02:57]} 2. f4 {[%clk 0:03:00]}  Bg7 {[%clk 0:02:57]} 3. Nf3 {[%clk 0:03:00]}  d6 {[%clk 0:02:57]} 4. Bc4 {[%clk 0:03:00]}  Nf6 {[%clk 0:02:56]} 5. d3 {[%clk 0:03:00]}  d5 {[%clk 0:02:55]} 6. exd5 {[%clk 0:02:46]}  Nxd5 {[%clk 0:02:56]} 7. O-O {[%clk 0:02:45]}  O-O {[%clk 0:02:56]} 8. Bd2 {[%clk 0:02:40]}  c6 {[%clk 0:02:47]} 9. Kh1 {[%clk 0:02:36]}  Bxb2 {[%clk 0:02:43]} 10. Bxd5 {[%clk 0:02:35]}  Bxa1 {[%clk 0:02:38]} 11. Bb3 {[%clk 0:02:31]}  Bg7 {[%clk 0:02:37]} 12. Nc3 {[%clk 0:02:25]}  Nd7 {[%clk 0:02:35]} 13. f5 {[%clk 0:02:14]}  Nc5 {[%clk 0:02:32]} 14. fxg6 {[%clk 0:02:13]}  hxg6 {[%clk 0:02:33]} 15. Ne4 {[%clk 0:02:02]}  Nxb3 {[%clk 0:02:31]} 16. axb3 {[%clk 0:01:59]}  Bf5 {[%clk 0:02:15]} 17. Ng3 {[%clk 0:01:54]}  Bg4 {[%clk 0:02:11]} 18. h3 {[%clk 0:01:54]}  Bxf3 {[%clk 0:02:10]} 19. Qxf3 {[%clk 0:01:55]}  Qd5 {[%clk 0:02:10]} 20. Qg4 {[%clk 0:01:50]}  Rad8 {[%clk 0:01:46]} 21. Qh4 {[%clk 0:01:29]}  Qe6 {[%clk 0:01:24]} 22. Ne4 {[%clk 0:01:25]}  Rd4 {[%clk 0:01:18]} 23. Be3 {[%clk 0:01:18]}  Rxe4 {[%clk 0:00:57]} 24. dxe4 {[%clk 0:01:09]}  b6 {[%clk 0:00:56]} 25. c4 {[%clk 0:01:00]}  Rd8 {[%clk 0:00:53]} 26. Bg5 {[%clk 0:00:50]}  Rd4 {[%clk 0:00:45]} 27. Bxe7 {[%clk 0:00:40]}  Rxe4 {[%clk 0:00:42]} 28. Qg3 {[%clk 0:00:29]}  Qxe7 {[%clk 0:00:41]} 29. Qb8+ {[%clk 0:00:25]}  Kh7 {[%clk 0:00:40]} 30. Qc8 {[%clk 0:00:18]}  f5 {[%clk 0:00:39]} 31. Qxc6 {[%clk 0:00:15]}  Re1 {[%clk 0:00:38]} 32. Qf3 {[%clk 0:00:13]}  Bd4 {[%clk 0:00:37]} 33. Kh2 {[%clk 0:00:11]}  Qe5+ {[%clk 0:00:36]} 34. Kh1 {[%clk 0:00:10]}  Qe3 {[%clk 0:00:28]} 35. Qb7+ {[%clk 0:00:08]}  Kh6 {[%clk 0:00:25]} 36. Rxe1 {[%clk 0:00:07]}  Qxe1+ {[%clk 0:00:24]} 37. Kh2 {[%clk 0:00:07]}  Bg1+ {[%clk 0:00:25]} 38. Kh1 {[%clk 0:00:07]}  Bf2+ {[%clk 0:00:25]} 39. Kh2 {[%clk 0:00:07]}  Qg1# {[%clk 0:00:26]} 0-1

[Event "November 21 Early 2023"]
[Site "https://www.chess.com"]
[Date "2023.11.21"]
[Round "7"]
[White "Florianovitz, Derlei Alex"]
[Black "Martin Duque, Jesus"]
[Result "1-0"]
[Board "139"]
[TimeControl "180+1"]
[WhiteFideId "2114178"]
[BlackFideId "2208954"]
[WhiteElo "1953"]
[BlackElo "2319"]
[WhiteTeam "BRA"]
[BlackTeam "ESP"]
[WhiteClock "0:00:10"]
[BlackClock "0:01:50"]

1. e4 {[%clk 0:03:00]}  c5 {[%clk 0:02:58]} 2. Nf3 {[%clk 0:03:00]}  e6 {[%clk 0:02:57]} 3. d4 {[%clk 0:03:01]}  cxd4 {[%clk 0:02:58]} 4. Nxd4 {[%clk 0:03:01]}  Nc6 {[%clk 0:02:58]} 5. c4 {[%clk 0:03:02]}  Qc7 {[%clk 0:02:59]} 6. Nxc6 {[%clk 0:02:59]}  dxc6 {[%clk 0:02:58]} 7. Nc3 {[%clk 0:02:59]}  e5 {[%clk 0:02:58]} 8. Be3 {[%clk 0:02:57]}  Nf6 {[%clk 0:02:56]} 9. h3 {[%clk 0:02:55]}  Be6 {[%clk 0:02:55]} 10. Be2 {[%clk 0:02:47]}  Nd7 {[%clk 0:02:55]} 11. Qc2 {[%clk 0:02:44]}  Bc5 {[%clk 0:02:55]} 12. Bxc5 {[%clk 0:02:42]}  Nxc5 {[%clk 0:02:56]} 13. O-O {[%clk 0:02:41]}  a5 {[%clk 0:02:56]} 14. b3 {[%clk 0:02:38]}  g5 {[%clk 0:02:56]} 15. a3 {[%clk 0:02:32]}  h5 {[%clk 0:02:52]} 16. b4 {[%clk 0:02:31]}  Nd7 {[%clk 0:02:52]} 17. c5 {[%clk 0:01:59]}  g4 {[%clk 0:02:51]} 18. h4 {[%clk 0:01:57]}  g3 {[%clk 0:02:46]} 19. fxg3 {[%clk 0:01:51]}  Rg8 {[%clk 0:02:46]} 20. Qd3 {[%clk 0:01:44]}  O-O-O {[%clk 0:02:45]} 21. Qe3 {[%clk 0:01:32]}  Nf8 {[%clk 0:02:29]} 22. b5 {[%clk 0:01:21]}  Rd4 {[%clk 0:02:28]} 23. bxc6 {[%clk 0:01:11]}  Qxc6 {[%clk 0:02:28]} 24. Nb5 {[%clk 0:01:08]}  Kb8 {[%clk 0:02:25]} 25. Nxd4 {[%clk 0:01:07]}  exd4 {[%clk 0:02:24]} 26. Qxd4 {[%clk 0:01:07]}  Rxg3 {[%clk 0:02:24]} 27. Kh2 {[%clk 0:00:55]}  Qc7 {[%clk 0:02:14]} 28. Qd6 {[%clk 0:00:55]}  Qxd6 {[%clk 0:02:14]} 29. cxd6 {[%clk 0:00:56]}  Re3 {[%clk 0:02:14]} 30. Bxh5 {[%clk 0:00:53]}  Rxe4 {[%clk 0:02:13]} 31. Bxf7 {[%clk 0:00:45]}  Rxh4+ {[%clk 0:02:13]} 32. Kg3 {[%clk 0:00:38]}  Rg4+ {[%clk 0:02:13]} 33. Kh3 {[%clk 0:00:39]}  Bd7 {[%clk 0:02:09]} 34. Kh2 {[%clk 0:00:34]}  Nh7 {[%clk 0:02:07]} 35. Rae1 {[%clk 0:00:31]}  Ng5 {[%clk 0:02:07]} 36. Be8 {[%clk 0:00:27]}  Kc8 {[%clk 0:02:03]} 37. Rf8 {[%clk 0:00:19]}  Nh7 {[%clk 0:01:55]} 38. Bxd7+ {[%clk 0:00:08]}  Kxd7 {[%clk 0:01:53]} 39. Rf7+ {[%clk 0:00:08]}  Kxd6 {[%clk 0:01:52]} 40. Rxh7 {[%clk 0:00:09]}  Ra4 {[%clk 0:01:52]} 41. Rxb7 {[%clk 0:00:09]}  Rxa3 {[%clk 0:01:52]} 42. Rd1+ {[%clk 0:00:08]}  Kc6 {[%clk 0:01:52]} 43. Rg7 {[%clk 0:00:08]}  a4 {[%clk 0:01:52]} 44. Rf1 {[%clk 0:00:08]}  Ra2 {[%clk 0:01:53]} 45. Rf6+ {[%clk 0:00:08]}  Kd5 {[%clk 0:01:53]} 46. Rg4 {[%clk 0:00:08]}  a3 {[%clk 0:01:53]} 47. Ra6 {[%clk 0:00:07]}  Kc5 {[%clk 0:01:52]} 48. Ra5+ {[%clk 0:00:08]}  Kb6 {[%clk 0:01:52]} 49. Rf5 {[%clk 0:00:08]}  Ra1 {[%clk 0:01:52]} 50. Rg6+ {[%clk 0:00:08]}  Kc7 {[%clk 0:01:51]} 51. Rf7+ {[%clk 0:00:09]}  Kd8 {[%clk 0:01:50]} 52. Rg8# {[%clk 0:00:10]} 1-0

[Event "November 21 Early 2023"]
[Site "https://www.chess.com"]
[Date "2023.11.21"]
[Round "7"]
[White "Kubatko, Ivan"]
[Black "dumbernugget"]
[Result "1/2-1/2"]
[Board "140"]
[TimeControl "180+1"]
[WhiteFideId "24111473"]
[WhiteElo "2285"]
[BlackElo "2121"]
[WhiteTeam "RUS"]
[WhiteClock "0:00:06"]
[BlackClock "0:00:20"]

1. e4 {[%clk 0:03:00]}  c5 {[%clk 0:02:59]} 2. c3 {[%clk 0:02:58]}  d6 {[%clk 0:02:59]} 3. d4 {[%clk 0:02:58]}  cxd4 {[%clk 0:02:58]} 4. cxd4 {[%clk 0:02:59]}  Nf6 {[%clk 0:02:58]} 5. Nc3 {[%clk 0:02:59]}  g6 {[%clk 0:02:58]} 6. Nf3 {[%clk 0:02:36]}  Bg7 {[%clk 0:02:57]} 7. h3 {[%clk 0:02:36]}  O-O {[%clk 0:02:55]} 8. Be3 {[%clk 0:02:36]}  Nc6 {[%clk 0:02:55]} 9. Be2 {[%clk 0:02:28]}  a6 {[%clk 0:02:54]} 10. a4 {[%clk 0:01:45]}  Bd7 {[%clk 0:02:48]} 11. O-O {[%clk 0:01:44]}  Na5 {[%clk 0:02:48]} 12. e5 {[%clk 0:01:26]}  dxe5 {[%clk 0:02:42]} 13. dxe5 {[%clk 0:01:25]}  Ne8 {[%clk 0:02:42]} 14. Nd5 {[%clk 0:01:09]}  Bc6 {[%clk 0:02:18]} 15. Nb6 {[%clk 0:01:02]}  Rb8 {[%clk 0:01:57]} 16. b4 {[%clk 0:01:02]}  Bxf3 {[%clk 0:01:50]} 17. Bxf3 {[%clk 0:00:49]}  Nc6 {[%clk 0:01:46]} 18. Bc5 {[%clk 0:00:33]}  Nxe5 {[%clk 0:01:37]} 19. Be2 {[%clk 0:00:18]}  Nd6 {[%clk 0:01:32]} 20. Rc1 {[%clk 0:00:16]}  Nd7 {[%clk 0:01:29]} 21. Nxd7 {[%clk 0:00:16]}  Qxd7 {[%clk 0:01:29]} 22. Qb3 {[%clk 0:00:13]}  b6 {[%clk 0:01:25]} 23. Be3 {[%clk 0:00:13]}  a5 {[%clk 0:01:24]} 24. b5 {[%clk 0:00:11]}  Rfc8 {[%clk 0:01:20]} 25. Bf3 {[%clk 0:00:09]}  Nf5 {[%clk 0:01:16]} 26. Rc6 {[%clk 0:00:07]}  Nxe3 {[%clk 0:01:14]} 27. Qxe3 {[%clk 0:00:08]}  Rxc6 {[%clk 0:01:12]} 28. bxc6 {[%clk 0:00:08]}  Qc7 {[%clk 0:01:11]} 29. Rd1 {[%clk 0:00:08]}  Rd8 {[%clk 0:01:10]} 30. Rxd8+ {[%clk 0:00:07]}  Qxd8 {[%clk 0:01:10]} 31. Qc1 {[%clk 0:00:02]}  Be5 {[%clk 0:01:07]} 32. g3 {[%clk 0:00:02]}  Qc7 {[%clk 0:01:02]} 33. Qc4 {[%clk 0:00:01]}  Bd6 {[%clk 0:01:00]} 34. Kg2 {[%clk 0:00:02]}  Bc5 {[%clk 0:01:00]} 35. Bd5 {[%clk 0:00:01]}  e6 {[%clk 0:01:00]} 36. Bf3 {[%clk 0:00:02]}  Qd6 {[%clk 0:00:59]} 37. Qb5 {[%clk 0:00:01]}  Kg7 {[%clk 0:00:58]} 38. Qa6 {[%clk 0:00:01]}  Qd2 {[%clk 0:00:52]} 39. Qe2 {[%clk 0:00:02]}  Qxe2 {[%clk 0:00:49]} 40. Bxe2 {[%clk 0:00:02]}  Bd6 {[%clk 0:00:49]} 41. f4 {[%clk 0:00:02]}  Kf6 {[%clk 0:00:49]} 42. Kf3 {[%clk 0:00:02]}  Ke7 {[%clk 0:00:50]} 43. Bb5 {[%clk 0:00:02]}  Bc7 {[%clk 0:00:50]} 44. Ke4 {[%clk 0:00:03]}  Kd6 {[%clk 0:00:50]} 45. Kd4 {[%clk 0:00:03]}  f6 {[%clk 0:00:49]} 46. Kc4 {[%clk 0:00:03]}  e5 {[%clk 0:00:50]} 47. fxe5+ {[%clk 0:00:03]}  fxe5 {[%clk 0:00:49]} 48. Kd3 {[%clk 0:00:03]}  Kd5 {[%clk 0:00:49]} 49. Ke3 {[%clk 0:00:03]}  e4 {[%clk 0:00:48]} 50. g4 {[%clk 0:00:04]}  Ke5 {[%clk 0:00:47]} 51. Ke2 {[%clk 0:00:04]}  Kf4 {[%clk 0:00:47]} 52. Ba6 {[%clk 0:00:03]}  Kg3 {[%clk 0:00:39]} 53. Bc8 {[%clk 0:00:02]}  Kxh3 {[%clk 0:00:38]} 54. Ke3 {[%clk 0:00:03]}  Kg3 {[%clk 0:00:33]} 55. Kxe4 {[%clk 0:00:03]}  h5 {[%clk 0:00:33]} 56. gxh5 {[%clk 0:00:04]}  gxh5 {[%clk 0:00:33]} 57. Kd5 {[%clk 0:00:04]}  h4 {[%clk 0:00:19]} 58. Kc4 {[%clk 0:00:04]}  h3 {[%clk 0:00:19]} 59. Bxh3 {[%clk 0:00:04]}  Kxh3 {[%clk 0:00:20]} 60. Kb5 {[%clk 0:00:05]}  Kg4 {[%clk 0:00:18]} 61. Ka6 {[%clk 0:00:06]}  Kf5 {[%clk 0:00:17]} 62. Kb7 {[%clk 0:00:06]}  Bd8 {[%clk 0:00:17]} 63. c7 {[%clk 0:00:06]}  Bxc7 {[%clk 0:00:17]} 64. Kxc7 {[%clk 0:00:06]}  b5 {[%clk 0:00:17]} 65. axb5 {[%clk 0:00:07]}  a4 {[%clk 0:00:18]} 66. b6 {[%clk 0:00:07]}  a3 {[%clk 0:00:19]} 67. b7 {[%clk 0:00:08]}  a2 {[%clk 0:00:19]} 68. b8=Q {[%clk 0:00:09]}  a1=Q {[%clk 0:00:20]} 69. Qf8+ {[%clk 0:00:06]}  Qf6 {[%clk 0:00:20]} 70. Qxf6+ {[%clk 0:00:06]}  Kxf6 {[%clk 0:00:20]} 1/2-1/2